[Event "Live Chess"]
[Site "Chess.com"]
[Date "2023.05.21"]
[Round "-"]
[White "SmoothBaron"]
[Black "AttackingSnowLeopard"]
[Result "1-0"]
[WhiteElo "2350"]
[BlackElo "2194"]
[TimeControl "300"]
[EndTime "3:32:26 PDT"]
[Termination "SmoothBaron won by resignation"]

1. e4 {[%clk 0:04:55.4]} 1... e5 {[%clk 0:04:58.7]} 2. Nc3 {[%clk 0:04:53.5]}
2... Nf6 {[%clk 0:04:57]} 3. Bc4 {[%clk 0:04:52.1]} 3... Nc6 {[%clk 0:04:52.9]}
4. d3 {[%clk 0:04:50.6]} 4... Na5 {[%clk 0:04:49.8]} 5. Qf3 {[%clk 0:04:47.8]}
5... Nxc4 {[%clk 0:04:46.6]} 6. dxc4 {[%clk 0:04:47.3]} 6... Bc5 {[%clk
0:04:45.3]} 7. Nge2 {[%clk 0:04:45.6]} 7... d6 {[%clk 0:04:44.2]} 8. Bg5 {[%clk
0:04:44.4]} 8... Be6 {[%clk 0:04:41.6]} 9. Nd5 {[%clk 0:04:35.1]} 9... Bxd5
{[%clk 0:04:39.1]} 10. cxd5 {[%clk 0:04:33.6]} 10... Qe7 {[%clk 0:04:34.9]} 11.
Ng3 {[%clk 0:04:31.1]} 11... h6 {[%clk 0:04:31.5]} 12. Nf5 {[%clk 0:04:29.1]}
12... hxg5 {[%clk 0:04:22.8]} 13. Nxe7 {[%clk 0:04:27.1]} 13... Kxe7 {[%clk
0:04:22.7]} 14. O-O-O {[%clk 0:04:21]} 14... Rh4 {[%clk 0:04:20.9]} 15. g3
{[%clk 0:03:34.2]} 15... Rxe4 {[%clk 0:04:16.9]} 16. Rhe1 {[%clk 0:03:32.5]}
16... Rxe1 {[%clk 0:04:13.3]} 17. Rxe1 {[%clk 0:03:30.8]} 17... g4 {[%clk
0:04:12.9]} 18. Qe2 {[%clk 0:03:17.1]} 18... Rh8 {[%clk 0:04:10]} 19. Rh1 {[%clk
0:03:13.8]} 19... Rh5 {[%clk 0:04:02.2]} 20. c4 {[%clk 0:03:08]} 20... Rf5
{[%clk 0:04:00]} 21. Rf1 {[%clk 0:02:50.7]} 21... Rf3 {[%clk 0:03:56.8]} 22. h3
{[%clk 0:02:45.8]} 22... e4 {[%clk 0:03:41.4]} 23. hxg4 {[%clk 0:02:41.2]} 23...
g5 {[%clk 0:03:40.9]} 24. a3 {[%clk 0:02:27.5]} 24... a5 {[%clk 0:03:36.8]} 25.
Kd1 {[%clk 0:02:12.7]} 25... Kf8 {[%clk 0:03:28.9]} 26. Ke1 {[%clk 0:02:09.9]}
26... Nxg4 {[%clk 0:03:21]} 27. Qxe4 {[%clk 0:02:05.9]} 27... Ne5 {[%clk
0:03:20.5]} 28. Kd1 {[%clk 0:01:48.5]} 28... g4 {[%clk 0:03:05.5]} 29. Kc2
{[%clk 0:01:42.4]} 29... Rxf2+ {[%clk 0:03:00.6]} 30. Rxf2 {[%clk 0:01:40.8]}
30... Bxf2 {[%clk 0:03:00.3]} 31. b4 {[%clk 0:01:38.6]} 31... axb4 {[%clk
0:02:57.6]} 32. axb4 {[%clk 0:01:38.3]} 32... Bxg3 {[%clk 0:02:56.2]} 33. Kc3
{[%clk 0:01:32.8]} 33... Bf2 {[%clk 0:02:53.6]} 34. Qf5 {[%clk 0:01:24.2]} 34...
g3 {[%clk 0:02:52.5]} 35. b5 {[%clk 0:01:16]} 35... b6 {[%clk 0:02:50.1]} 36.
Qh3 {[%clk 0:01:11.9]} 36... Ke7 {[%clk 0:02:27.1]} 37. Kc2 {[%clk 0:01:04.6]}
37... Kf6 {[%clk 0:02:11.9]} 38. Kd1 {[%clk 0:01:02.1]} 38... Kg5 {[%clk
0:02:09.4]} 39. Ke2 {[%clk 0:00:59.3]} 39... f5 {[%clk 0:02:08.4]} 40. Kf1
{[%clk 0:00:56.5]} 40... Nxc4 {[%clk 0:02:05]} 41. Qh7 {[%clk 0:00:53.5]} 41...
Ne3+ {[%clk 0:01:48.6]} 42. Ke2 {[%clk 0:00:52.1]} 42... Nxd5 {[%clk 0:01:47.4]}
43. Qg8+ {[%clk 0:00:50]} 43... Kh4 {[%clk 0:01:38.4]} 44. Qxd5 {[%clk
0:00:48.6]} 44... f4 {[%clk 0:01:37.7]} 45. Kf3 {[%clk 0:00:46.9]} 45... g2
{[%clk 0:01:20.4]} 46. Kxf2 {[%clk 0:00:43]} 46... Kg4 {[%clk 0:01:17.1]} 47.
Qxg2+ {[%clk 0:00:40.3]} 47... Kf5 {[%clk 0:01:15.8]} 48. Qc6 {[%clk 0:00:39.3]}
48... Ke5 {[%clk 0:01:13.8]} 49. Qxc7 {[%clk 0:00:38.5]} 49... Kd4 {[%clk
0:01:13.1]} 50. Qxb6+ {[%clk 0:00:37.4]} 50... Kc4 {[%clk 0:01:13]} 51. Qc6+
{[%clk 0:00:36.4]} 51... Kb4 {[%clk 0:01:12.1]} 52. b6 {[%clk 0:00:35.7]} 1-0

[Event "Live Chess"]
[Site "Chess.com"]
[Date "2023.05.21"]
[Round "-"]
[White "TheSmoulderingMaster"]
[Black "JoshMcK"]
[Result "0-1"]
[WhiteElo "1676"]
[BlackElo "1518"]
[TimeControl "300"]
[EndTime "3:32:36 PDT"]
[Termination "JoshMcK won by resignation"]

1. e4 {[%clk 0:04:58.5]} 1... d6 {[%clk 0:04:58.7]} 2. d4 {[%clk 0:04:57.1]}
2... Nf6 {[%clk 0:04:57.3]} 3. Nc3 {[%clk 0:04:56.4]} 3... g6 {[%clk 0:04:55.6]}
4. Bf4 {[%clk 0:04:55.3]} 4... Bg7 {[%clk 0:04:54.7]} 5. Nf3 {[%clk 0:04:52.9]}
5... O-O {[%clk 0:04:54]} 6. Qd2 {[%clk 0:04:51.2]} 6... Nbd7 {[%clk 0:04:52.5]}
7. O-O-O {[%clk 0:04:48.7]} 7... c5 {[%clk 0:04:50.7]} 8. dxc5 {[%clk
0:04:45.6]} 8... Nxc5 {[%clk 0:04:50.6]} 9. e5 {[%clk 0:04:43.2]} 9... Nfe4
{[%clk 0:04:48.5]} 10. Nxe4 {[%clk 0:04:41.1]} 10... Nxe4 {[%clk 0:04:48.4]} 11.
Qe3 {[%clk 0:04:40.2]} 11... Nc5 {[%clk 0:04:26.1]} 12. exd6 {[%clk 0:04:38]}
12... exd6 {[%clk 0:04:23.8]} 13. Bxd6 {[%clk 0:04:36.6]} 13... Qf6 {[%clk
0:04:18.9]} 14. Bxc5 {[%clk 0:04:26.4]} 14... Qxb2+ {[%clk 0:04:17]} 15. Kd2
{[%clk 0:04:25.8]} 15... Rd8+ {[%clk 0:04:15.3]} 16. Bd3 {[%clk 0:04:23]} 16...
Bc3+ {[%clk 0:04:02.3]} 17. Ke2 {[%clk 0:04:21.5]} 17... Bg4 {[%clk 0:03:50.2]}
18. h3 {[%clk 0:04:16.8]} 18... Re8 {[%clk 0:03:45]} 19. Be4 {[%clk 0:04:10.9]}
19... Bf5 {[%clk 0:03:43.8]} 20. Ng5 {[%clk 0:04:05.9]} 20... Bxe4 {[%clk
0:03:29.9]} 21. Nxe4 {[%clk 0:04:03.7]} 21... Qxc2+ {[%clk 0:03:28.8]} 22. Kf3
{[%clk 0:03:59.6]} 22... f5 {[%clk 0:03:14.8]} 23. Rc1 {[%clk 0:02:59.7]} 23...
fxe4+ {[%clk 0:02:59.7]} 24. Kg3 {[%clk 0:02:57.3]} 24... Be5+ {[%clk
0:02:51.4]} 25. Kg4 {[%clk 0:02:56.2]} 25... Qxa2 {[%clk 0:02:25.4]} 26. Qxe4
{[%clk 0:02:50]} 26... Qe6+ {[%clk 0:02:20.5]} 27. Kf3 {[%clk 0:02:45]} 27...
Qf6+ {[%clk 0:02:04.8]} 28. Ke2 {[%clk 0:02:34.5]} 28... Bd6 {[%clk 0:01:54.6]}
29. f3 {[%clk 0:02:27.5]} 29... Rxe4+ {[%clk 0:01:47.1]} 30. fxe4 {[%clk
0:02:26.5]} 30... Bxc5 {[%clk 0:01:46.2]} 31. Rxc5 {[%clk 0:02:24.8]} 31... Qb2+
{[%clk 0:01:40.6]} 32. Kd3 {[%clk 0:02:21.3]} 32... Rd8+ {[%clk 0:01:38.1]} 0-1

[Event "Live Chess"]
[Site "Chess.com"]
[Date "2023.05.21"]
[Round "-"]
[White "domrobson"]
[Black "The_Straightforward_Rook"]
[Result "1-0"]
[WhiteElo "1716"]
[BlackElo "1860"]
[TimeControl "300"]
[EndTime "3:33:00 PDT"]
[Termination "domrobson won by resignation"]

1. d4 {[%clk 0:04:58.5]} 1... Nf6 {[%clk 0:04:54.1]} 2. c4 {[%clk 0:04:57.9]}
2... e6 {[%clk 0:04:53.1]} 3. Nf3 {[%clk 0:04:55.7]} 3... Bb4+ {[%clk
0:04:51.9]} 4. Bd2 {[%clk 0:04:54.5]} 4... a5 {[%clk 0:04:49.1]} 5. Nc3 {[%clk
0:04:51.9]} 5... O-O {[%clk 0:04:43.9]} 6. e3 {[%clk 0:04:47.4]} 6... d5 {[%clk
0:04:38.5]} 7. cxd5 {[%clk 0:04:42.6]} 7... exd5 {[%clk 0:04:34.4]} 8. Bd3
{[%clk 0:04:42.2]} 8... Re8 {[%clk 0:04:32.1]} 9. O-O {[%clk 0:04:41.2]} 9... c6
{[%clk 0:04:29]} 10. Ne5 {[%clk 0:04:39.8]} 10... Nbd7 {[%clk 0:04:27.2]} 11. f4
{[%clk 0:04:38.5]} 11... Bxc3 {[%clk 0:04:18.6]} 12. Bxc3 {[%clk 0:04:35.5]}
12... Ne4 {[%clk 0:04:18.2]} 13. Rf3 {[%clk 0:04:26.3]} 13... f6 {[%clk
0:04:11.1]} 14. Nxd7 {[%clk 0:04:24.2]} 14... Bxd7 {[%clk 0:04:10.2]} 15. Qc2
{[%clk 0:04:16.3]} 15... Qe7 {[%clk 0:04:08.5]} 16. Re1 {[%clk 0:04:11.9]} 16...
b5 {[%clk 0:04:05.3]} 17. Bxe4 {[%clk 0:04:10.6]} 17... Qxe4 {[%clk 0:04:03.4]}
18. Qxe4 {[%clk 0:04:09.3]} 18... Rxe4 {[%clk 0:04:03]} 19. Bd2 {[%clk
0:04:04.1]} 19... b4 {[%clk 0:03:59]} 20. Rc1 {[%clk 0:04:02.5]} 20... Kf7
{[%clk 0:03:55.7]} 21. Rc5 {[%clk 0:04:00.9]} 21... Ke6 {[%clk 0:03:53.9]} 22.
Rf1 {[%clk 0:04:00.1]} 22... Kd6 {[%clk 0:03:52.5]} 23. Rfc1 {[%clk 0:03:59]}
23... g5 {[%clk 0:03:39.9]} 24. g3 {[%clk 0:03:53.8]} 24... h5 {[%clk
0:03:35.1]} 25. Kf2 {[%clk 0:03:50.8]} 25... Re7 {[%clk 0:03:32.6]} 26. a3
{[%clk 0:03:49.1]} 26... bxa3 {[%clk 0:03:20.3]} 27. bxa3 {[%clk 0:03:47.2]}
27... a4 {[%clk 0:03:19.9]} 28. Bb4 {[%clk 0:03:43.3]} 1-0

[Event "Live Chess"]
[Site "Chess.com"]
[Date "2023.05.21"]
[Round "-"]
[White "hturner40"]
[Black "MJMykh"]
[Result "1-0"]
[WhiteElo "1814"]
[BlackElo "1158"]
[TimeControl "300"]
[EndTime "3:33:24 PDT"]
[Termination "hturner40 won by resignation"]

1. Nf3 {[%clk 0:04:57]} 1... Nc6 {[%clk 0:04:58.7]} 2. e4 {[%clk 0:04:53.7]}
2... e5 {[%clk 0:04:58.1]} 3. c3 {[%clk 0:04:51.8]} 3... Nf6 {[%clk 0:04:57.2]}
4. d4 {[%clk 0:04:50.3]} 4... exd4 {[%clk 0:04:56.6]} 5. e5 {[%clk 0:04:47.6]}
5... Nd5 {[%clk 0:04:52.6]} 6. Bc4 {[%clk 0:04:44.8]} 6... Nde7 {[%clk
0:04:45.8]} 7. cxd4 {[%clk 0:04:40.8]} 7... d5 {[%clk 0:04:43.4]} 8. exd6 {[%clk
0:04:34.8]} 8... cxd6 {[%clk 0:04:41.1]} 9. Bg5 {[%clk 0:04:06.4]} 9... h6
{[%clk 0:04:33.4]} 10. Bh4 {[%clk 0:04:02]} 10... Bg4 {[%clk 0:04:27.1]} 11. Nc3
{[%clk 0:03:45.9]} 11... Bxf3 {[%clk 0:04:25.4]} 12. Qxf3 {[%clk 0:03:41.4]}
12... f6 {[%clk 0:04:24.2]} 13. O-O-O {[%clk 0:03:17]} 13... a6 {[%clk
0:04:17.9]} 14. Rhe1 {[%clk 0:03:08.3]} 14... Qd7 {[%clk 0:04:15.1]} 15. Qh5+
{[%clk 0:02:57.5]} 15... g6 {[%clk 0:04:09.2]} 16. Qxg6+ {[%clk 0:02:53.4]}
16... Kd8 {[%clk 0:04:04.2]} 17. Qxf6 {[%clk 0:02:50.9]} 17... Rh7 {[%clk
0:03:58.8]} 18. Qxf8+ {[%clk 0:02:46.1]} 18... Kc7 {[%clk 0:03:56.7]} 19. Qxa8
{[%clk 0:02:36.7]} 1-0

[Event "Live Chess"]
[Site "Chess.com"]
[Date "2023.05.21"]
[Round "-"]
[White "chessleanstrategist"]
[Black "toxic_rabbit"]
[Result "1-0"]
[WhiteElo "453"]
[BlackElo "1961"]
[TimeControl "300"]
[EndTime "3:33:33 PDT"]
[Termination "chessleanstrategist won - game abandoned"]

1. c4 {[%clk 0:04:56.8]} 1... c6 {[%clk 0:04:55]} 2. Nf3 {[%clk 0:04:54.6]} 2...
Nf6 {[%clk 0:04:53.7]} 3. Nc3 {[%clk 0:04:51.4]} 3... g6 {[%clk 0:04:53.3]} 4.
d4 {[%clk 0:04:47.6]} 4... Bg7 {[%clk 0:04:52.8]} 5. e3 {[%clk 0:04:46]} 5...
O-O {[%clk 0:04:45.6]} 6. g3 {[%clk 0:04:35.5]} 6... d5 {[%clk 0:04:43.7]} 7.
cxd5 {[%clk 0:04:32.7]} 7... cxd5 {[%clk 0:03:53.9]} 8. Bg2 {[%clk 0:04:30.1]}
8... Nc6 {[%clk 0:03:52.4]} 9. Ne5 {[%clk 0:04:14.3]} 9... e6 {[%clk 0:03:49.9]}
10. Nxc6 {[%clk 0:04:12.6]} 10... bxc6 {[%clk 0:03:49.8]} 11. O-O {[%clk
0:04:07.8]} 11... Ba6 {[%clk 0:03:48.8]} 12. Re1 {[%clk 0:04:05.8]} 12... Nd7
{[%clk 0:03:26.6]} 13. b4 {[%clk 0:03:55]} 13... Bc4 {[%clk 0:03:17.1]} 14. a4
{[%clk 0:03:46.7]} 14... Rb8 {[%clk 0:03:09.9]} 15. Ba3 {[%clk 0:03:30.8]} 15...
Re8 {[%clk 0:03:02.8]} 16. Qc2 {[%clk 0:03:10.2]} 16... e5 {[%clk 0:03:00.9]}
17. Reb1 {[%clk 0:02:54.8]} 17... exd4 {[%clk 0:02:56.9]} 18. exd4 {[%clk
0:02:53]} 18... Bxd4 {[%clk 0:02:52.7]} 19. Rd1 {[%clk 0:02:30.7]} 19... Qf6
{[%clk 0:02:38]} 20. Ne2 {[%clk 0:02:28.2]} 20... Rxe2 {[%clk 0:02:33.3]} 21.
Qc1 {[%clk 0:01:25.5]} 21... Qxf2+ {[%clk 0:02:24.4]} 22. Kh1 {[%clk 0:01:17.2]}
1-0

[Event "Live Chess"]
[Site "Chess.com"]
[Date "2023.05.21"]
[Round "-"]
[White "Biranidun"]
[Black "JoRoSaR"]
[Result "1-0"]
[WhiteElo "2540"]
[BlackElo "1680"]
[TimeControl "300"]
[EndTime "3:33:36 PDT"]
[Termination "Biranidun won by resignation"]

1. e4 {[%clk 0:04:55.8]} 1... c5 {[%clk 0:04:46]} 2. Nf3 {[%clk 0:04:54.7]} 2...
Nc6 {[%clk 0:04:44.9]} 3. d4 {[%clk 0:04:53.7]} 3... cxd4 {[%clk 0:04:44.8]} 4.
Nxd4 {[%clk 0:04:53.4]} 4... e5 {[%clk 0:04:44.4]} 5. Nb5 {[%clk 0:04:52.6]}
5... d6 {[%clk 0:04:43.7]} 6. N1c3 {[%clk 0:04:52.3]} 6... a6 {[%clk 0:04:43.4]}
7. Na3 {[%clk 0:04:51.7]} 7... b5 {[%clk 0:04:43]} 8. Nd5 {[%clk 0:04:51]} 8...
Nce7 {[%clk 0:04:42]} 9. c4 {[%clk 0:04:50.4]} 9... Nxd5 {[%clk 0:04:41.1]} 10.
exd5 {[%clk 0:04:49]} 10... b4 {[%clk 0:04:39.7]} 11. Qa4+ {[%clk 0:04:47]}
11... Bd7 {[%clk 0:04:36.8]} 12. Qxb4 {[%clk 0:04:46.6]} 12... Rb8 {[%clk
0:04:36.2]} 13. Qc3 {[%clk 0:04:45.2]} 13... f5 {[%clk 0:04:35.4]} 14. Be2
{[%clk 0:04:44.5]} 14... Nf6 {[%clk 0:04:34.3]} 15. O-O {[%clk 0:04:43.9]} 15...
Be7 {[%clk 0:04:33.1]} 16. Nc2 {[%clk 0:04:31.1]} 16... O-O {[%clk 0:04:31.9]}
17. b3 {[%clk 0:04:29.7]} 17... Ne4 {[%clk 0:04:31.1]} 18. Qe1 {[%clk
0:04:26.5]} 18... f4 {[%clk 0:04:22.6]} 19. f3 {[%clk 0:04:22.8]} 19... Nf6
{[%clk 0:04:21.6]} 20. Bd3 {[%clk 0:04:22]} 20... Qe8 {[%clk 0:04:20.5]} 21. Qe2
{[%clk 0:04:16.4]} 21... Qh5 {[%clk 0:04:11.5]} 22. Bxf4 {[%clk 0:04:15.1]}
22... Rbe8 {[%clk 0:03:39.6]} 23. Bg3 {[%clk 0:04:14.2]} 23... g5 {[%clk
0:03:28.6]} 24. h3 {[%clk 0:04:12]} 24... Qh6 {[%clk 0:03:25.1]} 25. Rae1 {[%clk
0:04:08]} 25... Nh5 {[%clk 0:03:24.3]} 26. Bh2 {[%clk 0:04:05.5]} 26... Nf4
{[%clk 0:03:23]} 27. Qd2 {[%clk 0:04:01.7]} 27... Qh4 {[%clk 0:03:02.9]} 28. Ne3
{[%clk 0:03:59.1]} 28... Bxh3 {[%clk 0:02:17.3]} 29. gxh3 {[%clk 0:03:56.9]}
29... Nxh3+ {[%clk 0:02:15.9]} 30. Kh1 {[%clk 0:03:56]} 30... Rf6 {[%clk
0:02:07.7]} 31. Ng4 {[%clk 0:03:53.1]} 31... Rf7 {[%clk 0:01:53.4]} 32. Be4
{[%clk 0:03:49.9]} 32... h5 {[%clk 0:01:52.1]} 33. Ne3 {[%clk 0:03:48.7]} 33...
g4 {[%clk 0:01:46.7]} 34. Nf5 {[%clk 0:03:37.5]} 34... Qg5 {[%clk 0:01:32]} 35.
Qxg5+ {[%clk 0:03:29.4]} 35... Nxg5 {[%clk 0:01:31.1]} 36. Nh6+ {[%clk
0:03:28.2]} 1-0

[Event "Live Chess"]
[Site "Chess.com"]
[Date "2023.05.21"]
[Round "-"]
[White "bedsdrout"]
[Black "ItsNot_Jasper"]
[Result "0-1"]
[WhiteElo "571"]
[BlackElo "1373"]
[TimeControl "300"]
[EndTime "3:33:40 PDT"]
[Termination "ItsNot_Jasper won by checkmate"]

1. b4 {[%clk 0:04:54.6]} 1... e5 {[%clk 0:04:58.1]} 2. Nc3 {[%clk 0:04:51.9]}
2... Bxb4 {[%clk 0:04:56.9]} 3. e4 {[%clk 0:04:45.8]} 3... Bxc3 {[%clk
0:04:55.4]} 4. Bc4 {[%clk 0:04:43.4]} 4... Bb4 {[%clk 0:04:52.3]} 5. Qf3 {[%clk
0:04:41.6]} 5... Nf6 {[%clk 0:04:50.5]} 6. Nh3 {[%clk 0:04:20.9]} 6... h6 {[%clk
0:04:44.7]} 7. Nf4 {[%clk 0:04:19.4]} 7... exf4 {[%clk 0:04:43.4]} 8. Qxf4
{[%clk 0:04:16.1]} 8... O-O {[%clk 0:04:41.4]} 9. Bd3 {[%clk 0:04:09.4]} 9...
Re8 {[%clk 0:04:38.4]} 10. e5 {[%clk 0:04:07.3]} 10... Nc6 {[%clk 0:04:29.7]}
11. Qf5 {[%clk 0:04:03.3]} 11... Rxe5+ {[%clk 0:04:27.9]} 12. Kf1 {[%clk
0:03:49.7]} 12... Rxf5 {[%clk 0:04:26.2]} 13. Bxf5 {[%clk 0:03:48.6]} 13... Qe7
{[%clk 0:04:24.5]} 14. Rb1 {[%clk 0:03:36.7]} 14... Nd4 {[%clk 0:04:23]} 15.
Rxb4 {[%clk 0:03:34.9]} 15... Qe2+ {[%clk 0:04:21.9]} 16. Kg1 {[%clk 0:03:26.8]}
16... Qe1# {[%clk 0:04:21.8]} 0-1

[Event "Live Chess"]
[Site "Chess.com"]
[Date "2023.05.21"]
[Round "-"]
[White "Mugzwang"]
[Black "CeladonFish"]
[Result "1-0"]
[WhiteElo "1565"]
[BlackElo "1090"]
[TimeControl "300"]
[EndTime "3:33:41 PDT"]
[Termination "Mugzwang won by resignation"]

1. Nf3 {[%clk 0:04:57.2]} 1... d5 {[%clk 0:04:58.1]} 2. c4 {[%clk 0:04:54.1]}
2... dxc4 {[%clk 0:04:55.9]} 3. e3 {[%clk 0:04:53.4]} 3... b5 {[%clk 0:04:53.9]}
4. a4 {[%clk 0:04:51.4]} 4... c6 {[%clk 0:04:44.5]} 5. axb5 {[%clk 0:04:50.1]}
5... cxb5 {[%clk 0:04:42.7]} 6. Ne5 {[%clk 0:04:43.6]} 6... Nf6 {[%clk
0:04:36.1]} 7. Qf3 {[%clk 0:04:42.2]} 7... Qd5 {[%clk 0:04:23.9]} 8. Qxd5 {[%clk
0:03:53]} 8... Nxd5 {[%clk 0:04:21.4]} 9. Na3 {[%clk 0:03:48.2]} 9... b4 {[%clk
0:04:14.3]} 10. Naxc4 {[%clk 0:03:45.1]} 10... f6 {[%clk 0:04:08.5]} 11. Nf3
{[%clk 0:03:40.7]} 11... b3 {[%clk 0:04:02.3]} 12. Na5 {[%clk 0:03:24.6]} 12...
Nb4 {[%clk 0:03:51.8]} 13. Bb5+ {[%clk 0:02:48.1]} 13... Bd7 {[%clk 0:03:40.1]}
14. Bxd7+ {[%clk 0:02:46.5]} 14... Nxd7 {[%clk 0:03:38.4]} 15. O-O {[%clk
0:02:35.9]} 15... Nc5 {[%clk 0:03:26.9]} 16. d4 {[%clk 0:02:29.2]} 16... Ne4
{[%clk 0:02:44.6]} 17. Nxb3 {[%clk 0:02:23.4]} 17... Rb8 {[%clk 0:02:40.3]} 18.
Rxa7 {[%clk 0:02:16.1]} 18... Nc6 {[%clk 0:02:38]} 19. Ra3 {[%clk 0:02:08.9]}
19... e5 {[%clk 0:02:30.2]} 20. Nc5 {[%clk 0:02:03.4]} 20... Nxc5 {[%clk
0:02:11.1]} 21. dxc5 {[%clk 0:02:01.7]} 21... Bxc5 {[%clk 0:02:10.6]} 22. Rc3
{[%clk 0:01:58.5]} 22... Rb5 {[%clk 0:02:02.3]} 23. b4 {[%clk 0:01:52.4]} 23...
Bxe3 {[%clk 0:01:40.4]} 24. Bxe3 {[%clk 0:01:46.2]} 24... Nxb4 {[%clk
0:01:33.3]} 25. Rc8+ {[%clk 0:01:44]} 1-0

[Event "Live Chess"]
[Site "Chess.com"]
[Date "2023.05.21"]
[Round "-"]
[White "DoYouLikeCurry"]
[Black "gmnorfolk"]
[Result "0-1"]
[WhiteElo "1397"]
[BlackElo "2111"]
[TimeControl "300"]
[EndTime "3:33:49 PDT"]
[Termination "gmnorfolk won by resignation"]

1. e4 {[%clk 0:04:58.1]} 1... c5 {[%clk 0:04:58.3]} 2. Nc3 {[%clk 0:04:57]} 2...
g6 {[%clk 0:04:56.8]} 3. f4 {[%clk 0:04:55.9]} 3... Bg7 {[%clk 0:04:56.1]} 4.
Nf3 {[%clk 0:04:53.7]} 4... d6 {[%clk 0:04:54.9]} 5. Bc4 {[%clk 0:04:51.6]} 5...
e6 {[%clk 0:04:54.2]} 6. d3 {[%clk 0:04:50.6]} 6... Ne7 {[%clk 0:04:53.6]} 7.
O-O {[%clk 0:04:47.8]} 7... O-O {[%clk 0:04:52.1]} 8. Qe1 {[%clk 0:04:46.5]}
8... d5 {[%clk 0:04:51.8]} 9. Bb3 {[%clk 0:04:43.6]} 9... Nbc6 {[%clk
0:04:43.9]} 10. Qh4 {[%clk 0:04:39.6]} 10... f5 {[%clk 0:04:34.1]} 11. exf5
{[%clk 0:04:35.7]} 11... Nxf5 {[%clk 0:04:27.9]} 12. Qxd8 {[%clk 0:04:32.6]}
12... Rxd8 {[%clk 0:04:25.8]} 13. Bd2 {[%clk 0:04:23.5]} 13... Ncd4 {[%clk
0:04:23.3]} 14. Nxd4 {[%clk 0:04:21.7]} 14... Nxd4 {[%clk 0:04:20]} 15. Rae1
{[%clk 0:04:13.7]} 15... b5 {[%clk 0:04:18.2]} 16. a3 {[%clk 0:04:11.8]} 16...
c4 {[%clk 0:04:16.8]} 17. dxc4 {[%clk 0:04:10]} 17... dxc4 {[%clk 0:04:11.6]}
18. Ba2 {[%clk 0:04:06]} 18... Nxc2 {[%clk 0:04:10.5]} 19. Rc1 {[%clk
0:04:00.4]} 19... Rxd2 {[%clk 0:04:07.7]} 20. Nxb5 {[%clk 0:03:56.4]} 20... Ne3
{[%clk 0:03:59.6]} 0-1

[Event "Live Chess"]
[Site "Chess.com"]
[Date "2023.05.21"]
[Round "-"]
[White "JohanKjeldahl"]
[Black "Tushinskiy"]
[Result "0-1"]
[WhiteElo "1890"]
[BlackElo "2190"]
[TimeControl "300"]
[EndTime "3:34:01 PDT"]
[Termination "Tushinskiy won by resignation"]

1. c4 {[%clk 0:04:57.9]} 1... e5 {[%clk 0:04:58]} 2. Nc3 {[%clk 0:04:56.6]} 2...
Nc6 {[%clk 0:04:56.7]} 3. e3 {[%clk 0:04:54.7]} 3... f5 {[%clk 0:04:55.9]} 4. g3
{[%clk 0:04:51.1]} 4... Nf6 {[%clk 0:04:54.9]} 5. Bg2 {[%clk 0:04:50.3]} 5...
Be7 {[%clk 0:04:53]} 6. Nge2 {[%clk 0:04:49.2]} 6... O-O {[%clk 0:04:52.2]} 7.
O-O {[%clk 0:04:48.8]} 7... d6 {[%clk 0:04:50.9]} 8. d4 {[%clk 0:04:47.8]} 8...
e4 {[%clk 0:04:49.8]} 9. h4 {[%clk 0:04:43.7]} 9... h6 {[%clk 0:04:48]} 10. Nf4
{[%clk 0:04:41.9]} 10... Bd7 {[%clk 0:04:45.1]} 11. b3 {[%clk 0:04:39.9]} 11...
Kh7 {[%clk 0:04:42.1]} 12. Bb2 {[%clk 0:04:37.5]} 12... Qe8 {[%clk 0:04:40.8]}
13. Rc1 {[%clk 0:04:28.6]} 13... Nd8 {[%clk 0:04:37]} 14. d5 {[%clk 0:04:26.3]}
14... Nf7 {[%clk 0:04:35.6]} 15. Nce2 {[%clk 0:04:22.2]} 15... Ne5 {[%clk
0:04:33.3]} 16. Nd4 {[%clk 0:04:15.9]} 16... Rf7 {[%clk 0:04:21.7]} 17. Nde6
{[%clk 0:04:11.7]} 17... Nfg4 {[%clk 0:04:20.1]} 18. Qe2 {[%clk 0:03:57.7]}
18... Rc8 {[%clk 0:04:18.1]} 19. f3 {[%clk 0:03:51.4]} 19... exf3 {[%clk
0:04:16.7]} 20. Bxf3 {[%clk 0:03:50.6]} 20... Nxf3+ {[%clk 0:04:13.6]} 21. Qxf3
{[%clk 0:03:48.7]} 21... Bf6 {[%clk 0:04:12]} 22. Bxf6 {[%clk 0:03:41.3]} 22...
Rxf6 {[%clk 0:04:11.9]} 23. e4 {[%clk 0:03:32.9]} 23... Ne5 {[%clk 0:04:01.8]}
24. Qe2 {[%clk 0:03:24.8]} 24... Bxe6 {[%clk 0:03:59]} 25. Nxe6 {[%clk
0:03:21.4]} 25... Qg6 {[%clk 0:03:57]} 26. Qe3 {[%clk 0:03:07.9]} 26... fxe4
{[%clk 0:03:47.9]} 27. Rxf6 {[%clk 0:03:04.3]} 27... Qxf6 {[%clk 0:03:44.1]} 28.
Qxe4+ {[%clk 0:03:02.3]} 28... Qg6 {[%clk 0:03:33.6]} 29. Qxg6+ {[%clk
0:02:59.1]} 29... Kxg6 {[%clk 0:03:33.5]} 30. Rf1 {[%clk 0:02:57.2]} 30... c6
{[%clk 0:03:31.2]} 31. Nf4+ {[%clk 0:02:43.1]} 31... Kh7 {[%clk 0:03:26.7]} 32.
Kg2 {[%clk 0:02:39.9]} 32... b5 {[%clk 0:03:16.9]} 33. dxc6 {[%clk 0:02:35.5]}
33... bxc4 {[%clk 0:03:14.7]} 34. bxc4 {[%clk 0:02:27.2]} 34... Rxc6 {[%clk
0:03:11.9]} 35. Rc1 {[%clk 0:02:21.6]} 35... Nxc4 {[%clk 0:03:05.3]} 36. Kh3
{[%clk 0:02:05.8]} 36... g5 {[%clk 0:03:01.2]} 37. hxg5 {[%clk 0:02:03.1]} 37...
hxg5 {[%clk 0:03:01.1]} 38. Ne6 {[%clk 0:02:00]} 38... Kg6 {[%clk 0:02:54.7]}
39. Nd4 {[%clk 0:01:57.4]} 39... Rc8 {[%clk 0:02:52.5]} 40. Rc2 {[%clk
0:01:51.6]} 40... d5 {[%clk 0:02:50.9]} 41. Re2 {[%clk 0:01:38.4]} 41... Rf8
{[%clk 0:02:44.6]} 42. Kg4 {[%clk 0:01:34.7]} 42... Rf6 {[%clk 0:02:40]} 43. Re8
{[%clk 0:01:30.6]} 43... Ra6 {[%clk 0:02:35.4]} 44. Re6+ {[%clk 0:01:27.6]}
44... Rxe6 {[%clk 0:02:33.6]} 45. Nxe6 {[%clk 0:01:26.7]} 45... Ne5+ {[%clk
0:02:28.5]} 46. Kh3 {[%clk 0:01:23.8]} 46... Kf5 {[%clk 0:02:26.6]} 47. Nd4+
{[%clk 0:01:18.7]} 47... Ke4 {[%clk 0:02:24.5]} 48. Nb5 {[%clk 0:01:17.4]} 48...
d4 {[%clk 0:02:19.9]} 49. Kg2 {[%clk 0:01:13.1]} 49... Ke3 {[%clk 0:02:13.7]}
50. Kf1 {[%clk 0:01:11.1]} 50... d3 {[%clk 0:02:09.9]} 51. Ke1 {[%clk
0:01:09.2]} 51... Nc4 {[%clk 0:02:08.7]} 52. Nxa7 {[%clk 0:01:03]} 52... d2+
{[%clk 0:02:07]} 53. Kd1 {[%clk 0:01:01.8]} 53... Nb2+ {[%clk 0:02:06.9]} 54.
Kc2 {[%clk 0:00:59.8]} 54... d1=Q+ {[%clk 0:02:06.8]} 55. Kxb2 {[%clk
0:00:58.7]} 55... Qd4+ {[%clk 0:02:06.2]} 0-1